[Event "6th Tulsi Lal Memorial NTCC 2080"]
[Site "Lalitpur"]
[Date "2024.01.11"]
[Round "7.1"]
[White "Jaiswal, Rupesh"]
[Black "Nepal, Prakash Chandra"]
[Result "1-0"]
[ECO "B51"]
[WhiteElo "2009"]
[BlackElo "1900"]
[Annotator "TA"]
[PlyCount "167"]
[EventDate "2024.01.03"]
[EventType "team-tourn"]
[EventCountry "NEP"]
[SourceTitle "playchess.com"]
[Source "ChessBase"]
[SourceQuality "1"]
[TimeControl "5400+30"]

{[%evp 31,167,12,20,24,15,16,31,32,63,71,78,62,79,82,89,79,110,33,100,54,47,41,67,60,80,61,61,51,50,38,39,28,38,39,41,19,22,20,23,23,25,23,15,11,11,11,17,11,29,12,12,17,9,0,4,4,4,0,0,0,0,0,1,1,1,1,1,0,0,0,0,0,25,25,25,25,25,12,12,12,12,0,0,0,0,0,0,0,0,0,0,0,0,0,0,0,8,8,8,0,0,0,0,0,0,0,0,0,64,64,64,64,29963,29964,29964,29965,29968,29969,29969,29968,29972,29972,29972,29973,29973,29973,29974,29975,29975,29976,29976,29977,29977,29978,29978,29977,29977,29965]} 1. e4 {[%emt 0:01:16]} c5 {[%emt 0:00:19]} 2. Nf3 {[%emt 0:00:03]} d6 {[%emt 0:01:29]} 3. Bb5+ {[%emt 0:00:06]} Nd7 {[%emt 0:00:54]} 4. a4 {[%emt 0:00:01]} Ngf6 {[%emt 0:00:11]} 5. Nc3 {[%emt 0:00:02]} e5 {[%emt 0:01:11]} 6. d3 {[%emt 0:01:52]} Be7 {[%emt 0:00:20]} 7. Bg5 {[%emt 0:02:11]} O-O {[%emt 0:00:47]} 8. O-O {[%emt 0:01:04]} a6 {[%emt 0:00:51]} 9. Bc4 {[%emt 0:02:39]} Nb8 {[%emt 0:05:15]} 10. Bxf6 {[%emt 0:02:36]} Bxf6 {[%emt 0:00:09]} 11. h3 {[%emt 0:00:47]} Nc6 {[%emt 0:00:20]} 12. Nd5 {[%emt 0:00:06]} Be6 {[%emt 0:00:18]} 13. c3 {[%emt 0:01:01]} Rb8 {[%emt 0:01:35]} 14. Qc2 {[%emt 0:10:17]} b5 {[%emt 0:09:19]} 15. axb5 {[%emt 0:01:28]} axb5 {[%emt 0:02:48]} 16. Bb3 {[%emt 0:00:03]} Bxd5 {[%emt 0:23:59]} 17. Bxd5 {[%emt 0:01:27]} Ne7 {[%emt 0:01:57]} 18. Qb3 {[%emt 0:07:23]} b4 {[%emt 0:02:11]} 19. Qc4 {[%emt 0:02:41]} Qc7 {[%emt 0:07:38]} 20. Ra6 {[%emt 0:01:23]} Nxd5 {[%emt 0:00:17]} 21. Qxd5 {[%emt 0:00:51]} Rb6 {[%emt 0:01:03]} 22. Rfa1 {[%emt 0:00:53]} bxc3 {[%emt 0:08:22]} 23. bxc3 {[%emt 0:00:29]} Qb8 {[%emt 0:02:06]} 24. Ra8 {[%emt 0:09:54]} (24. g3 $16) 24... Qb7 {[%emt 0:08:49]} (24... Rb1+ $14 25. Kh2 Rxa1 26. Rxb8 (26. Rxa1 Qb2 $11) 26... Rxb8) 25. Qxb7 {[%emt 0:06:05]} ({Besser ist} 25. Nd2 $16) 25... Rxb7 $14 {[%emt 0:00:23]} 26. Nd2 {[%emt 0:00:16]} Rd7 {[%emt 0:00:31]} 27. Nc4 {[%emt 0:00:33]} Rdd8 {[%emt 0:00:28]} 28. Rxd8 {[%emt 0:02:12]} Rxd8 {[%emt 0:00:02]} 29. Kf1 {[%emt 0:00:07]} Kf8 {[%emt 0:03:47]} 30. Ke2 {[%emt 0:00:41]} Ke7 {[%emt 0:01:08]} 31. Kd2 {[%emt 0:00:47]} Bg5+ {[%emt 0:02:32]} 32. Kc2 {[%emt 0:00:40]} g6 {[%emt 0:00:25]} 33. Ra7+ {[%emt 0:00:07]} Rd7 {[%emt 0:00:13]} 34. Ra8 {[%emt 0:00:42]} Ke6 {[%emt 0:00:38]} 35. Nb6 {[%emt 0:00:27]} Rb7 {[%emt 0:00:15]} 36. Nd5 {[%emt 0:01:10]} f5 {[%emt 0:00:21]} 37. Ra4 {[%emt 0:03:52]} Rf7 {[%emt 0:00:51]} 38. f3 {[%emt 0:00:06]} Rb7 {[%emt 0:00:22]} 39. Ra8 {[%emt 0:00:21]} Kf7 {[%emt 0:00:35]} 40. Rh8 {[%emt 0:00:47]} Kg7 {[%emt 0:00:09]} 41. Rc8 {[%emt 0:01:00]} Kf7 {[%emt 0:00:16]} 42. Rc7+ {[%emt 0:02:41]} Rxc7 {[%emt 0:00:10]} 43. Nxc7 {[%emt 0:00:02]} Ke7 {[%emt 0:00:24]} 44. Kb3 {[%emt 0:00:10]} Kd7 {[%emt 0:00:11]} 45. Nd5 {[%emt 0:00:03]} Kc6 {[%emt 0:00:24]} 46. Kc4 {[%emt 0:00:34]} fxe4 {[%emt 0:02:16]} 47. fxe4 {[%emt 0:00:56]} ({Keinesfalls} 47. dxe4 Bh4 $16) 47... h5 {[%emt 0:00:52]} 48. g3 {[%emt 0:01:51]} h4 {[%emt 0:00:28]} 49. g4 {[%emt 0:00:07]} Bd8 {[%emt 0:00:22]} 50. Ne3 {[%emt 0:00:16]} Bg5 {[%emt 0:00:28]} 51. Nc2 {[%emt 0:00:26]} Bf6 {[%emt 0:00:12]} 52. Ne1 {[%emt 0:00:15]} g5 {[%emt 0:01:06]} 53. Nf3 {[%emt 0:01:13]} Be7 {[%emt 0:00:19]} 54. d4 {[%emt 0:00:58]} cxd4 {[%emt 0:00:32]} 55. cxd4 {[%emt 0:00:01]} Bf6 {[%emt 0:00:18]} 56. dxe5 {[%emt 0:01:38]} dxe5 {[%emt 0:01:59]} 57. Ne1 {[%emt 0:00:02]} Be7 $1 {[%emt 0:00:29]} 58. Nc2 {[%emt 0:00:53]} Bc5 {[%emt 0:00:13]} 59. Na1 {[%emt 0:00:28]} Be3 {[%emt 0:00:51]} 60. Nb3 {[%emt 0:00:18]} Bb6 {[%emt 0:00:28]} 61. Nc1 {[%emt 0:00:39]} Bc5 {[%emt 0:01:42]} 62. Nb3 {[%emt 0:00:41]} Bb6 {[%emt 0:00:10]} 63. Kb4 $1 {[%emt 0:00:01]} Bc7 {[%emt 0:00:56]} 64. Nd2 {[%emt 0:00:33]} Bd6+ {[%emt 0:00:05]} 65. Kc4 {[%emt 0:00:11]} Be7 $1 {[%emt 0:00:19]} 66. Nb3 {[%emt 0:01:44]} Ba3 {[%emt 0:00:47]} 67. Nd2 {[%emt 0:04:03]} Be7 {[%emt 0:00:34]} 68. Nf3 {[%emt 0:01:30]} Bf6 $1 {[%emt 0:00:04]} 69. Kb4 {[%emt 0:10:27]} Kd6 {[%emt 0:00:14]} (69... Kb6 $11) 70. Kb5 $1 $14 {[%emt 0:00:13]} Bd8 {[%emt 0:00:17]} 71. Nd2 {[%emt 0:00:18]} Ke6 $2 {[%emt 0:00:17][%mdl 8192]} (71... Be7 $14) 72. Kc6 {[%emt 0:00:10]} Ba5 {[%emt 0:00:44]} 73. Nb3 {[%emt 0:00:51]} Bc3 {[%emt 0:00:13]} 74. Nc5+ {[%emt 0:00:05]} Kf6 {[%emt 0:00:05]} 75. Kd5 {[%emt 0:00:08]} Bd4 {[%emt 0:00:39]} 76. Nd7+ {[%emt 0:02:03]} Ke7 {[%emt 0:00:22]} 77. Nxe5 {[%emt 0:00:13]} Be3 {[%emt 0:00:15]} 78. Nc6+ {[%emt 0:00:28]} Kd7 {[%emt 0:00:12]} 79. e5 {[%emt 0:00:11]} Bf4 {[%emt 0:00:09]} 80. e6+ {[%emt 0:00:02]} Ke8 {[%emt 0:00:24]} 81. Ke4 {[%emt 0:00:02]} Kf8 {[%emt 0:00:31]} 82. Kf5 {[%emt 0:00:02]} Be3 {[%emt 0:00:15]} 83. Ne5 {[%emt 0:00:07]} Ke7 {[%emt 0:00:11]} 84. Nf7 {[%emt 0:00:08]} 1-0

[Event "6th Tulsi Lal Memorial NTCC 2080"]
[Site "Lalitpur"]
[Date "2024.01.11"]
[Round "7.2"]
[White "Ghimire, Sabin Chandra"]
[Black "Dahal, Sushrut"]
[Result "1/2-1/2"]
[ECO "E10"]
[WhiteElo "1869"]
[BlackElo "1895"]
[Annotator "NA RC COMBH"]
[PlyCount "80"]
[EventDate "2024.01.03"]
[EventType "team-tourn"]
[EventCountry "NEP"]
[SourceTitle "playchess.com"]
[Source "ChessBase"]
[SourceQuality "1"]
[TimeControl "5400+30"]

1. d4 {[%emt 0:00:08]} Nf6 {[%emt 0:00:26]} 2. c4 {[%emt 0:00:13]} e6 {[%emt 0:00:45]} 3. Nf3 {[%emt 0:00:08]} c5 {[%emt 0:00:10]} 4. d5 {[%emt 0:00:47]} exd5 {[%emt 0:01:04]} 5. cxd5 {[%emt 0:00:09]} d6 {[%emt 0:00:02]} 6. e4 {[%emt 0:00:06]} Be7 {[%emt 0:00:22]} 7. Bb5+ {[%emt 0:00:26]} Bd7 {[%emt 0:00:25]} 8. a4 {[%emt 0:01:17]} a6 {[%emt 0:00:45]} 9. Bxd7+ {[%emt 0:00:13]} Nbxd7 {[%emt 0:00:34]} 10. Nc3 {[%emt 0:01:25]} O-O {[%emt 0:00:35]} 11. O-O {[%emt 0:00:54]} Re8 {[%emt 0:00:43]} 12. Re1 {[%emt 0:00:47]} Bf8 {[%emt 0:02:39]} 13. Nd2 {[%emt 0:03:32]} b6 {[%emt 0:02:24]} 14. f4 {[%emt 0:08:01]} Qc7 {[%emt 0:03:21]} 15. Nc4 {[%emt 0:01:37]} Rab8 {[%emt 0:01:01]} 16. Qf3 {[%emt 0:07:10]} b5 {[%emt 0:00:47]} 17. axb5 {[%emt 0:00:43]} axb5 {[%emt 1:22:57]} 18. Nd2 {[%emt 0:03:33]} b4 {[%emt 0:00:00]} 19. Nd1 {[%emt 0:00:34]} g6 {[%emt 0:00:00]} 20. Nc4 {[%emt 0:00:15]} Nxd5 {[%emt 0:00:00] Pin} 21. Bd2 {[%emt 0:02:18]} N5b6 {[%emt 0:00:00]} 22. Nde3 {[%emt 0:00:19]} Nxc4 {[%emt 0:00:00]} 23. Nxc4 {[%emt 0:00:11]} Nb6 {[%emt 0:00:00]} 24. Nxb6 {[%emt 0:00:11]} Qxb6 {[%emt 0:00:00]} 25. e5 {[%emt 0:02:17]} dxe5 {[%emt 0:00:00]} 26. fxe5 {[%emt 0:00:22]} Bg7 {[%emt 0:00:00]} 27. Bf4 {[%emt 0:00:38]} Rbd8 {[%emt 0:00:00]} 28. Rad1 {[%emt 0:00:26]} h5 {[%emt 0:00:00]} 29. Rxd8 {[%emt 0:00:09]} Qxd8 {[%emt 0:00:00]} 30. Rd1 {[%emt 0:00:56]} Qb6 {[%emt 0:00:00]} 31. Rd6 {[%emt 0:00:35]} Qa7 {[%emt 0:00:00]} 32. h3 {[%emt 0:05:15]} c4+ {[%emt 0:00:00]} 33. Qf2 {[%emt 0:00:21]} Qxf2+ {[%emt 0:00:00]} 34. Kxf2 {[%emt 0:00:06]} Bxe5 {[%emt 0:00:00]} 35. Bxe5 {[%emt 0:00:07]} Rxe5 {[%emt 0:00:00]} 36. Rc6 {[%emt 0:00:07]} c3 {[%emt 0:00:00]} 37. bxc3 {[%emt 0:00:04]} bxc3 {[%emt 0:00:00]} 38. Rxc3 {[%emt 0:00:06]} Ra5 {[%emt 0:00:00]} 39. h4 {[%emt 0:00:22]} Kg7 {[%emt 0:00:00]} 40. Rc6 {[%emt 0:00:10]} Ra4 $15 {[%emt 0:00:00]} 1/2-1/2

[Event "6th Tulsi Lal Memorial NTCC 2080"]
[Site "Lalitpur"]
[Date "2024.01.11"]
[Round "7.3"]
[White "Shrestha, Muhan Narshing"]
[Black "Dahal, Mission"]
[Result "0-1"]
[ECO "D00"]
[WhiteElo "1693"]
[BlackElo "1704"]
[Annotator "NA RC COMBH"]
[PlyCount "96"]
[EventDate "2024.01.03"]
[EventType "team-tourn"]
[EventCountry "NEP"]
[SourceTitle "playchess.com"]
[Source "ChessBase"]
[SourceQuality "1"]
[TimeControl "5400+30"]

1. d4 {[%emt 0:00:06]} Nf6 {[%emt 0:00:19]} 2. Bf4 {[%emt 0:00:03]} e6 {[%emt 0:00:22]} 3. Nc3 {[%emt 0:00:08]} d5 {[%emt 0:00:10]} 4. e3 {[%emt 0:00:04]} a6 {[%emt 0:00:19]} 5. g4 {[%emt 0:00:31]} Bb4 {[%emt 0:00:36]} 6. Nge2 {[%emt 0:00:22]} Ne4 {[%emt 0:06:56]} 7. Bg2 {[%emt 0:04:33]} Nxc3 {[%emt 0:06:26]} 8. bxc3 {[%emt 0:02:26]} Bd6 {[%emt 0:00:23]} 9. Qd3 {[%emt 0:04:08]} c5 {[%emt 0:07:18]} 10. c4 {[%emt 0:07:10]} dxc4 {[%emt 0:07:13]} 11. Qxc4 {[%emt 0:00:22]} Bxf4 {[%emt 0:00:47]} 12. Nxf4 {[%emt 0:00:11]} Nd7 {[%emt 0:03:36]} 13. O-O {[%emt 0:06:51]} cxd4 {[%emt 0:02:09]} 14. exd4 {[%emt 0:02:54]} O-O {[%emt 0:01:25]} 15. h3 {[%emt 0:01:08]} b5 {[%emt 0:00:36]} 16. Qd3 {[%emt 0:01:17]} Rb8 {[%emt 0:00:12]} 17. a4 {[%emt 0:01:11]} Qc7 {[%emt 0:02:44]} 18. Ne2 {[%emt 0:03:53]} Bb7 {[%emt 0:02:49]} 19. Bxb7 {[%emt 0:01:18]} Rxb7 {[%emt 0:00:10]} 20. Rfb1 {[%emt 0:00:12]} Rfb8 {[%emt 0:01:40]} 21. Rb3 {[%emt 0:00:31]} e5 {[%emt 0:04:23]} 22. axb5 {[%emt 0:01:17]} axb5 {[%emt 0:00:38]} 23. c3 {[%emt 0:00:52]} Qd6 {[%emt 0:04:43]} 24. Rab1 {[%emt 0:01:37]} Nc5 {[%emt 0:00:34]} 25. Qc2 {[%emt 0:00:41]} Nxb3 {[%emt 0:00:12]} 26. Rxb3 {[%emt 0:00:22]} b4 {[%emt 0:02:52]} 27. dxe5 {[%emt 0:00:59]} Qxe5 {[%emt 0:00:52]} 28. cxb4 {[%emt 0:00:22]} g6 {[%emt 0:01:08]} 29. b5 {[%emt 0:01:03]} Rxb5 {[%emt 0:00:36]} 30. Rxb5 {[%emt 0:00:40]} Rxb5 {[%emt 0:00:28]} 31. Qd3 {[%emt 0:00:23]} Rd5 {[%emt 0:05:54]} 32. Qc4 {[%emt 0:00:49]} Rd1+ {[%emt 0:00:50]} 33. Kg2 {[%emt 0:00:06]} Rd2 {[%emt 0:04:35]} 34. Ng3 {[%emt 0:00:40]} Rd4 {[%emt 0:02:54]} 35. Qc8+ {[%emt 0:00:34]} Kg7 {[%emt 0:00:01]} 36. Qc3 {[%emt 0:00:09]} Qd5+ {[%emt 0:02:47]} 37. Kh2 {[%emt 0:00:27]} Qd6 {[%emt 0:05:51]} 38. Kg2 {[%emt 0:00:36]} f6 {[%emt 0:00:04]} 39. Qe3 {[%emt 0:00:28]} Qe5 {[%emt 0:06:12]} 40. Qxe5 {[%emt 0:01:02]} fxe5 {[%emt 0:00:03]} 41. Kf3 {[%emt 0:00:14]} h6 {[%emt 0:02:19]} 42. h4 {[%emt 0:00:06]} Rf4+ {[%emt 0:00:06]} 43. Kg2 {[%emt 0:00:10]} Rxg4 {[%emt 0:00:06]} 44. h5 {[%emt 0:00:10]} gxh5 {[%emt 0:03:21]} 45. Kh3 {[%emt 0:00:24]} Rxg3+ {[%emt 0:02:02]} 46. Kxg3 {[%emt 0:00:44]} Kg6 {[%emt 0:00:02]} 47. f4 {[%emt 0:00:26]} e4 {[%emt 0:00:04]} 48. Kh4 {[%emt 0:00:30]} Kf5 {[%emt 0:00:04]} 0-1

[Event "6th Tulsi Lal Memorial NTCC 2080"]
[Site "Lalitpur"]
[Date "2024.01.11"]
[Round "7.4"]
[White "Adhikari, Kritisara"]
[Black "Lohani, Sujana"]
[Result "1-0"]
[ECO "A48"]
[WhiteElo "1527"]
[BlackElo "1756"]
[Annotator "NA RC COMBH"]
[PlyCount "110"]
[EventDate "2024.01.03"]
[EventType "team-tourn"]
[EventCountry "NEP"]
[SourceTitle "playchess.com"]
[Source "ChessBase"]
[SourceQuality "1"]
[TimeControl "5400+30"]

1. d4 {[%emt 0:00:07]} Nf6 {[%emt 0:00:15]} 2. Bf4 {[%emt 0:00:06]} d6 {[%emt 0:00:42]} 3. e3 {[%emt 0:00:03]} g6 {[%emt 0:02:43]} 4. Nf3 {[%emt 0:02:02]} Bg7 {[%emt 0:00:08]} 5. h3 {[%emt 0:03:31]} O-O {[%emt 0:00:16]} 6. Be2 {[%emt 0:00:13]} c5 {[%emt 0:01:43]} 7. c3 {[%emt 0:02:43]} b6 {[%emt 0:00:36]} 8. O-O {[%emt 0:01:36]} Bb7 {[%emt 0:00:11]} 9. Nbd2 {[%emt 0:01:39]} Re8 {[%emt 0:00:45]} 10. Re1 {[%emt 0:03:17]} Nc6 {[%emt 0:01:28]} 11. Bb5 {[%emt 0:10:58]} a6 {[%emt 0:00:16]} 12. Bxc6 {[%emt 0:01:00]} Bxc6 {[%emt 0:00:05]} 13. a4 {[%emt 0:03:33]} Ra7 {[%emt 0:04:44]} 14. Bg3 {[%emt 0:10:35]} Qa8 {[%emt 0:01:38]} 15. Qe2 {[%emt 0:10:31]} Ne4 {[%emt 0:06:23]} 16. Nxe4 {[%emt 0:03:03]} Bxe4 {[%emt 0:00:09]} 17. Kh2 {[%emt 0:12:04]} Bxf3 {[%emt 0:18:53]} 18. Qxf3 {[%emt 0:00:25]} Qxf3 {[%emt 0:00:12]} 19. gxf3 {[%emt 0:00:16]} e5 {[%emt 0:03:01]} 20. dxe5 {[%emt 0:07:06]} dxe5 {[%emt 0:01:52]} 21. Red1 {[%emt 0:00:50]} Rb7 {[%emt 0:10:23]} 22. Rd6 {[%emt 0:05:27]} Bf8 {[%emt 0:00:18]} 23. Rd5 {[%emt 0:00:26]} f6 {[%emt 0:00:37]} 24. c4 {[%emt 0:06:23]} Kf7 {[%emt 0:01:25]} 25. Kg2 {[%emt 0:02:28]} Ree7 {[%emt 0:00:54]} 26. Rad1 {[%emt 0:00:29]} Re6 {[%emt 0:11:42]} 27. b3 {[%emt 0:02:28]} Ke7 {[%emt 0:01:04]} 28. f4 {[%emt 0:01:41]} exf4 {[%emt 0:05:29]} 29. Bxf4 {[%emt 0:00:14]} Kf7 {[%emt 0:00:59]} 30. Kf3 {[%emt 0:00:29]} f5 {[%emt 0:00:52]} 31. Rd7+ {[%emt 0:01:20]} Re7 {[%emt 0:00:53]} 32. R7d5 {[%emt 0:00:24]} Bg7 {[%emt 0:01:33]} 33. R1d3 {[%emt 0:01:47]} Bf6 {[%emt 0:01:09]} 34. Bg3 {[%emt 0:00:39]} Re4 {[%emt 0:05:06]} 35. Rd7+ {[%emt 0:00:37]} Re7 {[%emt 0:00:36]} 36. R7d5 {[%emt 0:00:10]} h6 {[%emt 0:03:08]} 37. h4 {[%emt 0:01:10]} Kg7 {[%emt 0:01:25]} 38. h5 {[%emt 0:01:03]} Rf7 {[%emt 0:10:37]} 39. hxg6 {[%emt 0:01:37]} Kxg6 {[%emt 0:00:12]} 40. Bf4 {[%emt 0:01:15]} Be7 {[%emt 0:02:19]} 41. Rd7 {[%emt 0:01:09]} Bf6 {[%emt 0:00:32]} 42. R7d5 {[%emt 0:00:13]} a5 {[%emt 0:02:11]} 43. Bg3 {[%emt 0:01:21]} Bg5 {[%emt 0:01:27]} 44. Bf4 {[%emt 0:01:22]} Rf6 {[%emt 0:00:39]} 45. Bxg5 {[%emt 0:01:38]} hxg5 {[%emt 0:00:06]} 46. Rd6 {[%emt 0:00:31]} Rbf7 {[%emt 0:01:02]} 47. Rxf6+ {[%emt 0:00:46]} Rxf6 {[%emt 0:00:04]} 48. Rd5 {[%emt 0:00:30]} g4+ {[%emt 0:01:05]} 49. Kf4 {[%emt 0:00:18]} Rf7 {[%emt 0:00:38]} 50. Rd6+ {[%emt 0:00:48]} Kg7 {[%emt 0:00:31]} 51. Rxb6 {[%emt 0:00:24]} Rf6 {[%emt 0:00:16]} 52. Rb5 {[%emt 0:00:17]} Kg6 {[%emt 0:00:45]} 53. Rxc5 {[%emt 0:00:08]} Rb6 {[%emt 0:00:22]} 54. Rb5 {[%emt 0:00:22]} Rf6 {[%emt 0:00:33]} 55. Rxa5 {[%emt 0:00:11]} Re6 {[%emt 0:01:08]} 1-0

[Event "6th Tulsi Lal Memorial NTCC 2080"]
[Site "Lalitpur"]
[Date "2024.01.11"]
[Round "7.5"]
[White "Subedi, Rajan"]
[Black "Thapa, Krishna"]
[Result "0-1"]
[ECO "B44"]
[WhiteElo "1809"]
[BlackElo "1944"]
[Annotator "RC"]
[PlyCount "169"]
[EventDate "2024.01.03"]
[EventType "team-tourn"]
[EventCountry "NEP"]
[SourceTitle "playchess.com"]
[Source "ChessBase"]
[SourceQuality "1"]
[TimeControl "5400+30"]

1. e4 {[%emt 0:00:03]} c5 {[%emt 0:00:32]} 2. Nf3 {[%emt 0:00:09]} e6 {[%emt 0:00:07]} 3. c4 {[%emt 0:00:51]} Nc6 {[%emt 0:01:17]} 4. d4 {[%emt 0:00:06]} cxd4 {[%emt 0:00:11]} 5. Nxd4 {[%emt 0:00:03]} Nf6 {[%emt 0:00:13]} 6. Nc3 {[%emt 0:00:13]} Bb4 {[%emt 0:00:20]} 7. Nxc6 {[%emt 0:00:13]} bxc6 {[%emt 0:00:59]} 8. Bd3 {[%emt 0:00:06]} e5 {[%emt 0:00:24]} 9. O-O {[%emt 0:00:18]} d6 {[%emt 0:00:26]} 10. Qa4 {[%emt 0:01:28]} Bxc3 {[%emt 0:05:13]} 11. bxc3 {[%emt 0:00:14]} Qc7 {[%emt 0:01:03]} 12. c5 {[%emt 0:09:07]} dxc5 {[%emt 0:15:30]} 13. Be3 {[%emt 0:02:53]} Nd7 {[%emt 0:08:08]} 14. Qa3 {[%emt 0:01:35]} O-O {[%emt 0:07:14]} 15. Bxc5 {[%emt 0:00:17]} Nxc5 {[%emt 0:00:28]} 16. Qxc5 {[%emt 0:00:08]} Be6 {[%emt 0:03:03]} 17. h3 {[%emt 0:04:55]} Rfd8 {[%emt 0:01:37]} 18. Rfd1 {[%emt 0:00:26]} h6 {[%emt 0:07:38]} 19. Bc2 {[%emt 0:01:16]} Rxd1+ {[%emt 0:06:31]} 20. Rxd1 {[%emt 0:03:20]} Bxa2 {[%emt 0:08:31]} 21. Ra1 {[%emt 0:06:08]} Be6 {[%emt 0:01:12]} 22. Ra6 {[%emt 0:00:16]} Qd8 {[%emt 0:06:57]} 23. Ba4 {[%emt 0:08:38]} Qd3 {[%emt 0:04:13]} 24. Ra5 {[%emt 0:28:29]} Qxe4 {[%emt 0:07:29]} 25. Bxc6 {[%emt 0:00:43]} Qe1+ {[%emt 0:00:47]} 26. Kh2 {[%emt 0:00:07]} Rd8 {[%emt 0:01:10]} 27. Rxa7 {[%emt 0:03:13]} Rd2 {[%emt 0:02:08]} 28. Qe3 {[%emt 0:05:37]} Qxe3 {[%emt 0:05:25]} 29. fxe3 {[%emt 0:00:02]} Kf8 {[%emt 0:00:46]} 30. e4 {[%emt 0:00:44]} Bc4 {[%emt 0:00:43]} 31. Kg1 {[%emt 0:00:25]} Rd6 {[%emt 0:00:29]} 32. Rc7 {[%emt 0:00:37]} Be6 {[%emt 0:00:54]} 33. Bb5 {[%emt 0:02:10]} Rd8 {[%emt 0:00:48]} 34. Ba6 {[%emt 0:03:39]} Rd7 {[%emt 0:00:37]} 35. Rc5 {[%emt 0:00:16]} f6 {[%emt 0:00:24]} 36. Kf2 {[%emt 0:00:35]} Ra7 {[%emt 0:00:21]} 37. Be2 {[%emt 0:03:00]} Ke7 {[%emt 0:00:10]} 38. h4 {[%emt 0:00:15]} Kd6 {[%emt 0:00:19]} 39. Rb5 {[%emt 0:00:12]} Rc7 {[%emt 0:00:24]} 40. Rb6+ {[%emt 0:00:23]} Ke7 {[%emt 0:00:19]} 41. h5 {[%emt 0:06:04]} Rxc3 {[%emt 0:00:28]} 42. Rb7+ {[%emt 0:00:15]} Kf8 {[%emt 0:00:03]} 43. Bb5 {[%emt 0:02:00]} Rc8 {[%emt 0:00:42]} 44. Kg3 {[%emt 0:01:44]} f5 {[%emt 0:00:32]} 45. exf5 {[%emt 0:00:22]} Bxf5 {[%emt 0:00:07]} 46. Bd7 {[%emt 0:00:45]} Rc3+ {[%emt 0:00:31]} 47. Kf2 {[%emt 0:01:51]} Rc2+ {[%emt 0:00:20]} 48. Kf1 {[%emt 0:01:33]} Be4 {[%emt 0:00:58]} 49. Rb8+ {[%emt 0:00:26]} Ke7 {[%emt 0:00:23]} 50. Bh3 {[%emt 0:00:12]} Bd3+ {[%emt 0:00:55]} 51. Kg1 {[%emt 0:00:38]} Kf6 {[%emt 0:00:42]} 52. Re8 {[%emt 0:01:00]} e4 {[%emt 0:00:47]} 53. g3 {[%emt 0:00:09]} Rc5 {[%emt 0:01:00]} 54. Kf2 {[%emt 0:01:34]} Rxh5 {[%emt 0:00:36]} 55. Bg2 {[%emt 0:01:10]} Re5 {[%emt 0:00:19]} 56. Ra8 {[%emt 0:02:00]} e3+ {[%emt 0:00:36]} 57. Ke1 {[%emt 0:00:20]} Rc5 {[%emt 0:00:10]} 58. Ra1 {[%emt 0:00:16]} Rc2 {[%emt 0:00:20]} 59. Bf1 {[%emt 0:00:36]} Bxf1 {[%emt 0:00:24]} 60. Kxf1 {[%emt 0:00:06]} Rf2+ {[%emt 0:00:16]} 61. Kg1 {[%emt 0:00:07]} Kg5 {[%emt 0:00:32]} 62. Ra4 {[%emt 0:00:14]} Rb2 {[%emt 0:00:57]} 63. Kf1 {[%emt 0:00:06]} Kf5 {[%emt 0:00:20]} 64. Rf4+ {[%emt 0:00:34]} Ke5 {[%emt 0:00:21]} 65. Ra4 {[%emt 0:00:57]} Rf2+ {[%emt 0:00:15]} 66. Ke1 {[%emt 0:00:28]} Rg2 {[%emt 0:00:25]} 67. g4 {[%emt 0:00:19]} Kf6 {[%emt 0:00:37]} 68. Kf1 {[%emt 0:00:18]} Rg3 {[%emt 0:00:56]} 69. Ke2 {[%emt 0:00:32]} Kg5 {[%emt 0:00:24]} 70. Ra7 {[%emt 0:00:21]} g6 {[%emt 0:00:17]} 71. Ra6 {[%emt 0:00:19]} Rxg4 {[%emt 0:00:32]} 72. Kxe3 {[%emt 0:00:10]} Kh4 {[%emt 0:00:52]} 73. Kf3 {[%emt 0:00:10]} h5 {[%emt 0:00:30]} 74. Ra5 {[%emt 0:00:10]} Rb4 {[%emt 0:00:21]} 75. Kg2 {[%emt 0:00:12]} g5 {[%emt 0:00:19]} 76. Ra2 {[%emt 0:00:07]} g4 {[%emt 0:00:05]} 77. Kh2 {[%emt 0:01:22]} g3+ {[%emt 0:00:15]} 78. Kh1 {[%emt 0:00:20]} Kg4 {[%emt 0:00:32]} 79. Rc2 {[%emt 0:00:50]} h4 {[%emt 0:00:05]} 80. Rc1 {[%emt 0:00:44]} Kh3 {[%emt 0:01:07]} 81. Rd1 {[%emt 0:00:23]} Kg4 {[%emt 0:00:34]} 82. Ra1 {[%emt 0:00:21]} h3 {[%emt 0:00:29]} 83. Rc1 {[%emt 0:00:14]} h2 {[%emt 0:01:11]} 84. Rc2 {[%emt 0:02:35]} Rb1+ {[%emt 0:00:07]} 85. Kg2 {[%emt 0:04:56]} 0-1